Workbook

Sheet Backmountain
A1: Back Mountain Demographic
B2: Dallas Borough | C2: Dallas Township | D2: Harveys Lake Borough | E2: Jackson Township | F2: Kingston Township | G2: Lake Township | H2: Lehman Township | I2: Total | J2: Percentages
A3: Age Range - Based on Population
A4: Total Population | B4: 2787 | C4: 9219 | D4: 2786 | E4: 4627 | F4: 6987 | G4: 2117 | H4: 3489 | I4: =SUM(I11+I15+I20+I25) -> 32012
A6: Under 5 Years Old | B6: 92 | C6: 240 | D6: 108 | E6: 78 | F6: 415 | G6: 77 | H6: 220 | I6: 1230
A7: 5 to 9 Years Old | B7: 147 | C7: 676 | D7: 61 | E7: 127 | F7: 447 | G7: 97 | H7: 183 | I7: 1738
A8: 10 to 14 Years Old | B8: 167 | C8: 606 | D8: 205 | E8: 160 | F8: 357 | G8: 158 | H8: 179 | I8: 1832
A9: 15 to 19 Years Old | B9: 224 | C9: 1063 | D9: 72 | E9: 192 | F9: 429 | G9: 165 | H9: 120 | I9: 2265
A10: 20 to 24 Years Old | B10: 294 | C10: 689 | D10: 69 | E10: 254 | F10: 360 | G10: 75 | H10: 170 | I10: 1911
A11: Total: Less Than 25 Years Old | B11: =SUM(B6:B10) -> 924 | C11: 3274 | D11: 515 | E11: 811 | F11: 2008 | G11: 572 | H11: 872 | I11: 8976 | J11: =(I11/I4) -> 0.2803948519
A13: 25 to 34 Years Old | B13: 293 | C13: 645 | D13: 334 | E13: 879 | F13: 739 | G13: 195 | H13: 407 | I13: 3492
A14: 35 to 44 Years Old | B14: 335 | C14: 978 | D14: 188 | E14: 975 | F14: 928 | G14: 268 | H14: 456 | I14: 4128
A15: Total: 25 to 44 Years Old | B15: =SUM(B13:B14) -> 628 | C15: 1623 | D15: 522 | E15: 1854 | F15: 1667 | G15: 463 | H15: 863 | I15: 7620 | J15: =(I15/I4) -> 0.2380357366
A17: 45 to 54 Years Old | B17: 487 | C17: 1074 | D17: 554 | E17: 872 | F17: 1326 | G17: 445 | H17: 491 | I17: 5249
A18: 55 to 59 Years Old | B18: 184 | C18: 659 | D18: 318 | E18: 283 | F18: 436 | G18: 180 | H18: 2677 | I18: 2327
A19: 60 to 64 Years Old | B19: 114 | C19: 600 | D19: 265 | E19: 245 | F19: 385 | G19: 147 | H19: 314 | I19: 2070
A20: 45-64 Years Old | B20: =SUM(B17:B19) -> 785 | C20: 2333 | D20: 1137 | E20: 1400 | F20: 2147 | G20: 772 | H20: 3482 | I20: 9646 | J20: =I20/I4 -> 0.3013245033
A22: 65 to 74 Years Old | B22: 224 | C22: 905 | D22: 368 | E22: 430 | F22: 726 | G22: 187 | H22: 458 | I22: 3298
A23: 75 to 84 Years Old | B23: 164 | C23: 582 | D23: 193 | E23: 109 | F23: 287 | G23: 79 | H23: 141 | I23: 1555
A24: + 85 Years Old | B24: 62 | C24: 502 | D24: 51 | E24: 23 | F24: 152 | G24: 44 | H24: 83 | I24: 917
A25: + 65 Years Old | B25: =SUM(B22:B24) -> 450 | C25: =SUM(C22:C24) -> 1989 | D25: =SUM(D22:D24) -> 612 | E25: =SUM(E22:E24) -> 562 | F25: =SUM(F22:F24) -> 1165 | G25: =SUM(G22:G24) -> 310 | H25: 682 | I25: =SUM(I22:I24) -> 5770 | J25: =I25/I4 -> 0.1802449082
A26: Household Information
A27: Total Households | B27: 1113 | C27: 3290 | D27: 1205 | E27: 882 | F27: 2823 | G27: 795 | H27: 1371 | I27: 11479
A29: Family Households | B29: 706 | C29: 2091 | D29: 880 | E29: 723 | F29: 1972 | G29: 613 | H29: 1028 | I29: 8013 | J29: =8013/I27 -> 0.6980573221
A30: Family Household - Married-Couple Family | B30: 540 | C30: 1681 | D30: 741 | E30: 647 | F30: 1652 | G30: 475 | H30: 918 | I30: 6654 | J30: =I30/I29 -> 0.830400599
A32: Nonofamily Households | B32: 407 | C32: 1199 | D32: 325 | E32: 159 | F32: 851 | G32: 182 | H32: 343 | I32: 3466 | J32: =I32/I27 -> 0.3019426779
A33: Nonfamily Households - Living alone | B33: 335 | C33: 1055 | D33: 270 | E33: 145 | F33: 758 | G33: 145 | H33: 335 | I33: 3043 | J33: =I33/I32 -> 0.8779572995
A35: Males + 15 Years Old | B35: 1142 | C35: 3468 | D35: 1119 | E35: 3267 | F35: 2678 | G35: 929 | H35: 1426 | I35: 14029
A36: Females + 15 Years Old | B36: 1239 | C36: 4229 | D36: 1293 | E36: 995 | F36: 3090 | G36: 856 | H36: 1481 | I36: 13183
A37: Educational Background
A38: +3 Years Old - Enrolled in School | B38: 806 | C38: 2814 | D38: 458 | E38: 614 | F38: 1701 | G38: 493 | H38: 670 | I38: 7556
A39: +3 Years Old - In High School (9-12) | B39: 181 | C39: 434 | D39: 50 | E39: 197 | F39: 359 | G39: 126 | H39: 127 | I39: 1474 | J39: =(I39/I38) -> 0.1950767602
A40: +3 Years Old - In College or Grad School | B40: 302 | C40: 1294 | D40: 104 | E40: 160 | F40: 461 | G40: 74 | H40: 150 | I40: 2545 | J40: =I40/I38 -> 0.3368184224
A41: % Enrolled in College or Highschool | B41: 0.54
A43: +25 Years Old - Population | B43: 1863 | C43: 5945 | D43: 2271 | E43: 3816 | F43: 4979 | G43: 1545 | H43: 1617 | I43: 23036
A45: + 25 Years Old - Graduated High School | B45: 407 | C45: 1647 | D45: 744 | E45: 1601 | F45: 1153 | G45: 724 | H45: 869 | I45: 7145 | J45: 0.31
A46: + 25 Years Old - Obtained Bachelor Degree | B46: 472 | C46: 1202 | D46: 353 | E46: 383 | F46: 1171 | G46: 316 | H46: 632 | I46: 4529 | J46: 0.2
A47: + 25 Years Old - Obtained Graduate Degree | B47: 379 | C47: 921 | D47: 253 | E47: 339 | F47: 848 | G47: 87 | H47: 288 | I47: 3115 | J47: 0.14
A49: % High School Graduates + 25 Years Old | B49: =I45/(I15+I20+I25) -> 0.3101666956
A50: % of Bachelor Degree + 25 Years Old | B50: =I46/(I15+I20+I25) -> 0.1966053134
A51: % of Masters Degree + 25 Years Old | B51: =I47/(I15+I20+I25) -> 0.135223129
A52: Labor Force
A53: Employment Status + 16 years | B53: 2283 | C53: 7576 | D53: 2388 | E53: 4223 | F53: 5631 | G53: 1726 | H53: 2854 | I53: 26681
A55: +16 Years Old - In Civillian Labor Force | B55: 1596 | C55: 4231 | D55: 1476 | E55: 1281 | F55: 4044 | G55: 1167 | H55: 1962 | I55: 15757 | J55: =I55/I53 -> 0.5905700686
A56: +16 Years Old - Not in Civillian Labor Force | B56: 687 | C56: 3345 | D56: 912 | E56: 2942 | F56: 1587 | G56: 559 | H56: 892 | I56: 10924 | J56: =I56/I53 -> 0.4094299314
A58: Employed Labor Force | B58: 1536 | C58: 3978 | D58: 1356 | E58: 1225 | F58: 3844 | G58: 1080 | H58: 1845 | I58: 14864 | J58: =I58/I55 -> 0.9433267754
A59: Unemployed Labor Force | B59: 60 | C59: 253 | D59: 120 | E59: 56 | F59: 200 | G59: 87 | H59: 117 | I59: 893 | J59: =893/15757 -> 0.0566732246
A60: Income
A61: Total Housing Units | B61: 1172 | C61: 3702 | D61: 1899 | E61: 971 | F61: 2904 | G61: 902 | H61: 1619 | I61: 13169
A63: Occupied Housing Units | B63: 1113 | C63: 3290 | D63: 1205 | E63: 882 | F63: 2823 | G63: 795 | H63: 1371 | I63: 11479 | J63: =I63/I61 -> 0.8716683119
A64: Vacant Housing Units | B64: 59 | C64: 412 | D64: 694 | E64: 89 | F64: 81 | G64: 107 | H64: 248 | I64: 1690 | J64: =I64/I61 -> 0.1283316881
A66: Household Income Per Occupied Household
A67: < 10,000 | B67: 28 | C67: 68 | D67: 55 | E67: 17 | F67: 100 | G67: 22 | H67: 32 | I67: 508 | J67: =I67/I63 -> 0.04425472602
A68: 10,000 - 14,999 | B68: 36 | C68: 153 | D68: 77 | E68: 27 | F68: 104 | G68: 37 | H68: 26 | I68: 460 | J68: =I68/I63 -> 0.04007317711
A69: 15,000 - 24,999 | B69: 50 | C69: 477 | D69: 99 | E69: 31 | F69: 260 | G69: 67 | H69: 172 | I69: 1156 | J69: =I69/I63 -> 0.1007056364
A70: 25,000 - 34,999 | B70: 85 | C70: 293 | D70: 129 | E70: 93 | F70: 136 | G70: 101 | H70: 109 | I70: 937 | J70: =I70/I63 -> 0.08162731945
A71: 35,000 - 49,999 | B71: 124 | C71: 410 | D71: 186 | E71: 64 | F71: 250 | G71: 134 | H71: 228 | I71: 1396 | J71: =I71/I63 -> 0.121613381
A72: 50,000 - 74,999 | B72: 190 | C72: 672 | D72: 200 | E72: 136 | F72: 508 | G72: 102 | H72: 203 | I72: 2011 | J72: =I72/I63 -> 0.1751894764
A73: 75,000 - 99,999 | B73: 178 | C73: 303 | D73: 170 | E73: 127 | F73: 500 | G73: 149 | H73: 121 | I73: 1548 | J73: =I73/I63 -> 0.1348549525
A74: 100,000 -149,999 | B74: 243 | C74: 496 | D74: 201 | E74: 185 | F74: 534 | G74: 92 | H74: 201 | I74: 1952 | J74: =I74/I63 -> 0.1700496559
A75: 150,000 - 199,999 | B75: 94 | C75: 101 | D75: 19 | E75: 91 | F75: 142 | G75: 48 | H75: 192 | I75: 788 | J75: =I75/I63 -> 0.06864709469
A76: 200000 | B76: 57 | C76: 172 | D76: 69 | E76: 109 | F76: 225 | G76: 22 | H76: 69 | I76: 723 | J76: =I76/I63 -> 0.06298458054

Sheet Sheet2
